[Event "Open NK Rapid 2025 bord 26-50"]
[Site "Helmond, Netherlands"]
[Date "2025.05.03"]
[Round "2.20"]
[White "Apon, Iwahn"]
[Black "Mau-Asam, LÃ©on"]
[Result "1-0"]
[TimeControl "15 min +5 sec increment"]
[WhiteFideId "1056115"]
[BlackFideId "40105890"]
[WhiteElo "1987"]
[BlackElo "1795"]

1. Nf3 {[%clk 00:15:09]} {[%emt 00:30:16]} Nf6 {[%clk 00:15:08]} {[%emt
00:00:02]} 2. c4 {[%clk 00:15:12]} {[%emt 00:00:01]} g6 {[%clk 00:15:11]}
{[%emt 00:00:03]} 3. d4 {[%clk 00:15:15]} {[%emt 00:00:02]} Bg7 {[%clk
00:15:14]} {[%emt 00:00:02]} 4. g3 {[%clk 00:15:18]} {[%emt 00:00:02]} d6
{[%clk 00:15:17]} {[%emt 00:00:02]} 5. Bg2 {[%clk 00:15:22]} {[%emt 00:00:01]}
O-O {[%clk 00:15:19]} {[%emt 00:00:02]} 6. Nc3 {[%clk 00:15:26]} {[%emt
00:00:01]} Nbd7 {[%clk 00:15:22]} {[%emt 00:00:02]} 7. b3 {[%clk 00:15:27]}
{[%emt 00:00:04]} e5 {[%clk 00:15:25]} {[%emt 00:00:02]} 8. dxe5 {[%clk
00:15:29]} {[%emt 00:00:03]} dxe5 {[%clk 00:15:27]} {[%emt 00:00:02]} 9. Bb2
{[%clk 00:15:32]} {[%emt 00:00:03]} c6 {[%clk 00:15:08]} {[%emt 00:00:23]} 10.
Qd2 {[%clk 00:14:50]} {[%emt 00:00:48]} Qe7 {[%clk 00:14:44]} {[%emt 00:00:29]}
11. O-O {[%clk 00:13:39]} {[%emt 00:01:16]} Nc5 {[%clk 00:11:28]} {[%emt
00:03:21]} 12. Rad1 {[%clk 00:13:09]} {[%emt 00:00:34]} Nfe4 {[%clk 00:09:58]}
{[%emt 00:01:35]} 13. Qe3 {[%clk 00:11:26]} {[%emt 00:01:48]} f5 {[%clk
00:09:00]} {[%emt 00:01:04]} 14. b4 {[%clk 00:08:34]} {[%emt 00:02:58]} Nxc3
{[%clk 00:08:36]} {[%emt 00:00:28]} 15. Bxc3 {[%clk 00:08:32]} {[%emt
00:00:07]} Nd7 {[%clk 00:08:34]} {[%emt 00:00:07]} 16. c5 {[%clk 00:07:47]}
{[%emt 00:00:50]} e4 {[%clk 00:07:11]} {[%emt 00:01:27]} 17. Bxg7 {[%clk
00:07:17]} {[%emt 00:00:36]} Kxg7 {[%clk 00:05:59]} {[%emt 00:01:17]} 18. Rd6
{[%clk 00:07:08]} {[%emt 00:00:14]} Rf6 {[%clk 00:05:39]} {[%emt 00:00:25]} 19.
Rfd1 {[%clk 00:07:01]} {[%emt 00:00:11]} Rxd6 {[%clk 00:04:44]} {[%emt
00:01:01]} 20. Rxd6 {[%clk 00:06:23]} {[%emt 00:00:43]} Nf6 {[%clk 00:04:37]}
{[%emt 00:00:12]} 21. Nd2 {[%clk 00:04:47]} {[%emt 00:01:40]} Be6 {[%clk
00:04:21]} {[%emt 00:00:21]} 22. Qd4 {[%clk 00:04:35]} {[%emt 00:00:18]} Bd5
{[%clk 00:04:17]} {[%emt 00:00:09]} 23. e3 {[%clk 00:04:14]} {[%emt 00:00:26]}
Kf7 {[%clk 00:03:49]} {[%emt 00:00:33]} 24. Bf1 {[%clk 00:04:02]} {[%emt
00:00:16]} b5 {[%clk 00:03:19]} {[%emt 00:00:36]} 25. Bxb5 {[%clk 00:03:31]}
{[%emt 00:00:36]} Rc8 {[%clk 00:00:26]} {[%emt 00:02:58]} 26. Bc4 {[%clk
00:03:20]} {[%emt 00:00:16]} Rc7 {[%clk 00:00:10]} {[%emt 00:00:21]} 27. Nb3
{[%clk 00:02:54]} {[%emt 00:00:31]} Rb7 {[%clk 00:00:07]} {[%emt 00:00:09]} 28.
a3 {[%clk 00:02:50]} {[%emt 00:00:08]} Bxc4 {[%clk 00:00:07]} {[%emt 00:00:05]}
29. Qxc4+ {[%clk 00:02:52]} {[%emt 00:00:03]} Kf8 {[%clk 00:00:10]} {[%emt
00:00:02]} 30. Na5 {[%clk 00:02:43]} {[%emt 00:00:14]} Rc7 {[%clk 00:00:07]}
{[%emt 00:00:08]} 31. Qd4 {[%clk 00:02:32]} {[%emt 00:00:16]} Kg7 {[%emt
00:00:07]} 32. Nxc6 {[%clk 00:02:29]} {[%emt 00:00:07]} Qf7 {[%clk 00:00:10]}
{[%emt 00:00:01]} 33. Nd8 {[%clk 00:02:16]} {[%emt 00:00:19]} Qe7 {[%clk
00:00:13]} {[%emt 00:00:01]} 34. Ne6+ {[%clk 00:02:18]} {[%emt 00:00:03]} 1-0

[Event "Open NK Rapid 2025 bord 26-50"]
[Site "Helmond, Netherlands"]
[Date "2025.05.03"]
[Round "2.21"]
[White "Rogozyanskiy, Alexander"]
[Black "Hoornstra, Hans"]
[Result "1-0"]
[TimeControl "15 min +5 sec increment"]
[WhiteFideId "1092138"]
[BlackFideId "1036076"]
[WhiteElo "1726"]
[BlackElo "1976"]

1. e4 {[%clk 00:15:07]} {[%emt 00:00:03]} c5 {[%clk 00:15:09]} {[%emt
00:00:02]} 2. Nf3 {[%clk 00:15:10]} {[%emt 00:00:02]} Nc6 {[%clk 00:15:12]}
{[%emt 00:00:02]} 3. Bb5 {[%clk 00:15:13]} {[%emt 00:00:02]} Nf6 {[%clk
00:15:14]} {[%emt 00:00:02]} 4. Bxc6 {[%clk 00:15:15]} {[%emt 00:00:03]} dxc6
{[%clk 00:15:18]} 5. d3 {[%clk 00:15:03]} {[%emt 00:00:18]} Bg4 {[%clk
00:15:17]} {[%emt 00:00:05]} 6. h3 {[%clk 00:14:55]} {[%emt 00:00:13]} Bxf3
{[%clk 00:15:20]} {[%emt 00:00:02]} 7. Qxf3 {[%clk 00:14:58]} {[%emt 00:00:03]}
g6 {[%clk 00:15:23]} {[%emt 00:00:02]} 8. O-O {[%clk 00:14:45]} {[%emt
00:00:18]} Bg7 {[%clk 00:15:21]} {[%emt 00:00:07]} 9. Nd2 {[%clk 00:14:18]}
{[%emt 00:00:31]} e5 {[%clk 00:14:47]} {[%emt 00:00:39]} 10. Nc4 {[%clk
00:14:10]} {[%emt 00:00:13]} Nd7 {[%clk 00:14:48]} {[%emt 00:00:04]} 11. Nd6+
{[%clk 00:13:57]} {[%emt 00:00:19]} Ke7 {[%clk 00:14:51]} {[%emt 00:00:01]} 12.
Nxf7 {[%clk 00:13:54]} {[%emt 00:00:09]} Qc7 {[%clk 00:12:49]} {[%emt
00:02:07]} 13. Bg5+ {[%clk 00:12:53]} {[%emt 00:01:06]} Nf6 {[%clk 00:12:34]}
{[%emt 00:00:19]} 14. Nxh8 {[%clk 00:12:54]} {[%emt 00:00:05]} Rxh8 {[%clk
00:12:38]} {[%emt 00:00:01]} 15. Qg3 {[%clk 00:12:49]} {[%emt 00:00:09]} h6
{[%clk 00:11:31]} {[%emt 00:01:12]} 16. Be3 {[%clk 00:12:50]} {[%emt 00:00:04]}
g5 {[%clk 00:11:01]} {[%emt 00:00:36]} 17. Bxc5+ {[%clk 00:11:38]} {[%emt
00:01:17]} Kd8 {[%clk 00:11:04]} {[%emt 00:00:01]} 18. Be3 {[%clk 00:09:36]}
{[%emt 00:02:07]} Kc8 {[%clk 00:07:52]} {[%emt 00:03:17]} 19. f3 {[%clk
00:09:24]} {[%emt 00:00:17]} Kb8 {[%clk 00:07:10]} {[%emt 00:00:47]} 20. Rfd1
{[%clk 00:08:49]} {[%emt 00:00:40]} Nh5 {[%clk 00:07:13]} {[%emt 00:00:02]} 21.
Qf2 {[%clk 00:08:53]} {[%emt 00:00:02]} Nf4 {[%clk 00:07:07]} {[%emt 00:00:10]}
22. Bxa7+ {[%clk 00:08:53]} {[%emt 00:00:06]} Kc8 {[%clk 00:07:01]} {[%emt
00:00:11]} 23. Bb6 {[%clk 00:08:09]} {[%emt 00:00:49]} Qe7 {[%clk 00:06:51]}
{[%emt 00:00:15]} 24. Qc5 {[%clk 00:06:40]} {[%emt 00:01:34]} Qe6 {[%clk
00:06:28]} {[%emt 00:00:27]} 25. Qa3 {[%clk 00:05:35]} {[%emt 00:01:11]} Kd7
{[%clk 00:02:46]} {[%emt 00:03:47]} 26. d4 {[%clk 00:03:15]} {[%emt 00:02:24]}
exd4 {[%clk 00:02:44]} {[%emt 00:00:08]} 27. c3 {[%clk 00:03:12]} {[%emt
00:00:09]} d3 {[%clk 00:01:51]} {[%emt 00:00:57]} 28. Be3 {[%clk 00:03:11]}
{[%emt 00:00:05]} Be5 {[%clk 00:00:48]} {[%emt 00:01:09]} 29. Bxf4 {[%clk
00:03:04]} {[%emt 00:00:12]} Bxf4 {[%clk 00:00:51]} {[%emt 00:00:02]} 30. Rxd3+
{[%clk 00:03:07]} {[%emt 00:00:01]} Kc8 {[%emt 00:00:29]} 31. Rad1 {[%clk
00:02:45]} Bc7 {[%clk 00:00:27]} {[%emt 00:00:33]} 32. Qa8+ {[%clk 00:02:06]}
{[%emt 00:00:44]} Bb8 {[%clk 00:00:30]} {[%emt 00:00:02]} 33. Qa5 {[%clk
00:02:06]} {[%emt 00:00:02]} Rf8 {[%clk 00:00:21]} {[%emt 00:00:16]} 34. Rd8+
{[%clk 00:02:08]} {[%emt 00:00:04]} 1-0

[Event "Open NK Rapid 2025 bord 26-50"]
[Site "Helmond, Netherlands"]
[Date "2025.05.03"]
[Round "2.22"]
[White "Landman, Renzo"]
[Black "Cakmak, Metehan Tugra"]
[Result "1-0"]
[TimeControl "15 min +5 sec increment"]
[WhiteFideId "40106306"]
[BlackFideId "44583885"]
[WhiteElo "1975"]
[BlackElo "1787"]

1. e4 {[%clk 00:15:04]} {[%emt 00:00:06]} c5 {[%clk 00:15:00]} {[%emt
00:00:11]} 2. Nf3 {[%clk 00:15:03]} {[%emt 00:00:06]} e6 {[%clk 00:15:04]}
{[%emt 00:00:01]} 3. c3 {[%clk 00:15:01]} {[%emt 00:00:07]} d5 {[%clk
00:15:06]} {[%emt 00:00:04]} 4. exd5 {[%clk 00:15:02]} {[%emt 00:00:03]} Qxd5
{[%clk 00:15:09]} {[%emt 00:00:02]} 5. d4 {[%clk 00:15:01]} {[%emt 00:00:06]}
Nc6 {[%clk 00:15:03]} {[%emt 00:00:12]} 6. Be2 {[%clk 00:15:00]} {[%emt
00:00:04]} Nf6 {[%clk 00:14:45]} {[%emt 00:00:24]} 7. O-O {[%clk 00:14:59]}
{[%emt 00:00:05]} cxd4 {[%clk 00:14:45]} {[%emt 00:00:06]} 8. cxd4 {[%clk
00:14:57]} {[%emt 00:00:06]} Be7 {[%clk 00:14:24]} {[%emt 00:00:27]} 9. Nc3
{[%clk 00:14:49]} {[%emt 00:00:13]} Qd8 {[%clk 00:14:12]} {[%emt 00:00:18]} 10.
Be3 {[%clk 00:14:26]} {[%emt 00:00:27]} O-O {[%clk 00:14:06]} {[%emt 00:00:12]}
11. a3 {[%clk 00:14:07]} {[%emt 00:00:24]} b6 {[%clk 00:13:05]} {[%emt
00:01:05]} 12. Ne5 {[%clk 00:13:29]} {[%emt 00:00:42]} Bb7 {[%clk 00:11:13]}
{[%emt 00:01:58]} 13. Bf3 {[%clk 00:12:33]} {[%emt 00:01:01]} Nd5 {[%clk
00:11:11]} {[%emt 00:00:07]} 14. Nxd5 {[%clk 00:11:45]} {[%emt 00:00:52]} exd5
{[%clk 00:11:12]} {[%emt 00:00:05]} 15. Nxc6 {[%clk 00:10:31]} {[%emt
00:01:19]} Bxc6 {[%clk 00:11:15]} {[%emt 00:00:02]} 16. Rc1 {[%clk 00:10:22]}
{[%emt 00:00:14]} Rc8 {[%clk 00:11:17]} {[%emt 00:00:04]} 17. Qd3 {[%clk
00:08:07]} {[%emt 00:02:19]} f5 {[%clk 00:08:54]} {[%emt 00:02:28]} 18. Bf4
{[%clk 00:07:52]} {[%emt 00:00:20]} Bd6 {[%clk 00:08:52]} {[%emt 00:00:08]} 19.
Be5 {[%clk 00:06:51]} {[%emt 00:01:05]} Be7 {[%clk 00:07:09]} {[%emt 00:01:49]}
20. Rfe1 {[%clk 00:06:38]} {[%emt 00:00:18]} Qd7 {[%clk 00:06:58]} {[%emt
00:00:16]} 21. Qb3 {[%clk 00:05:55]} {[%emt 00:00:47]} Ba8 {[%clk 00:06:38]}
{[%emt 00:00:26]} 22. Be2 {[%clk 00:05:22]} {[%emt 00:00:37]} Rxc1 {[%clk
00:06:20]} {[%emt 00:00:23]} 23. Rxc1 {[%clk 00:05:23]} {[%emt 00:00:04]} Rc8
{[%clk 00:06:24]} {[%emt 00:00:02]} 24. Re1 {[%clk 00:04:54]} {[%emt 00:00:33]}
Bc6 {[%clk 00:05:40]} {[%emt 00:00:50]} 25. h3 {[%clk 00:04:29]} {[%emt
00:00:29]} Bd6 {[%clk 00:04:57]} {[%emt 00:00:48]} 26. f4 {[%clk 00:03:39]}
{[%emt 00:00:55]} g6 {[%clk 00:04:23]} {[%emt 00:00:39]} 27. Qg3 {[%clk
00:03:23]} {[%emt 00:00:21]} Re8 {[%clk 00:02:51]} {[%emt 00:01:38]} 28. Bd3
{[%clk 00:03:05]} {[%emt 00:00:22]} Bxe5 {[%clk 00:02:49]} {[%emt 00:00:08]} 29.
dxe5 {[%clk 00:02:42]} {[%emt 00:00:27]} Re6 {[%clk 00:02:36]} {[%emt
00:00:18]} 30. Rc1 {[%clk 00:02:40]} {[%emt 00:00:06]} Kf7 {[%clk 00:02:20]}
{[%emt 00:00:22]} 31. Qh4 {[%clk 00:02:13]} {[%emt 00:00:32]} Kf8 {[%clk
00:01:49]} {[%emt 00:00:36]} 32. Qh6+ {[%clk 00:01:53]} {[%emt 00:00:25]} Kg8
{[%clk 00:01:28]} {[%emt 00:00:27]} 33. g4 {[%clk 00:01:29]} {[%emt 00:00:28]}
fxg4 {[%clk 00:01:14]} {[%emt 00:00:19]} 34. hxg4 {[%clk 00:01:16]} {[%emt
00:00:17]} Qe8 {[%clk 00:00:48]} {[%emt 00:00:32]} 35. Qg5 {[%clk 00:00:55]}
{[%emt 00:00:26]} Kf7 {[%clk 00:00:40]} {[%emt 00:00:14]} 36. f5 {[%clk
00:00:45]} {[%emt 00:00:14]} gxf5 {[%clk 00:00:42]} {[%emt 00:00:03]} 37. Qxf5+
{[%clk 00:00:42]} {[%emt 00:00:08]} Ke7 {[%clk 00:00:33]} {[%emt 00:00:14]} 38.
Qxh7+ {[%clk 00:00:41]} {[%emt 00:00:06]} Kd8 {[%clk 00:00:37]} {[%emt
00:00:01]} 39. Qxa7 {[%clk 00:00:43]} {[%emt 00:00:04]} Bd7 {[%clk 00:00:21]}
{[%emt 00:00:21]} 40. Bf5 {[%clk 00:00:28]} {[%emt 00:00:19]} Rxe5 {[%clk
00:00:15]} {[%emt 00:00:11]} 41. Qxb6+ {[%clk 00:00:31]} {[%emt 00:00:02]} Ke7
{[%clk 00:00:15]} {[%emt 00:00:06]} 42. Qc5+ {[%clk 00:00:23]} {[%emt
00:00:12]} Kf7 {[%clk 00:00:13]} {[%emt 00:00:06]} 43. Qf2 {[%clk 00:00:08]}
{[%emt 00:00:24]} Bxf5 {[%clk 00:00:15]} {[%emt 00:00:03]} 44. gxf5 {[%clk
00:00:09]} {[%emt 00:00:04]} Kf6 {[%clk 00:00:19]} {[%emt 00:00:02]} 45. Rf1
{[%clk 00:00:11]} {[%emt 00:00:02]} Qg8+ {[%clk 00:00:21]} {[%emt 00:00:03]} 46.
Qg2 {[%clk 00:00:12]} {[%emt 00:00:04]} Qxg2+ {[%clk 00:00:22]} {[%emt
00:00:04]} 47. Kxg2 {[%clk 00:00:16]} Re2+ {[%clk 00:00:23]} {[%emt 00:00:04]}
48. Rf2 {[%clk 00:00:19]} {[%emt 00:00:01]} Re4 {[%clk 00:00:26]} {[%emt
00:00:03]} 49. Kf1 {[%clk 00:00:22]} {[%emt 00:00:02]} d4 {[%clk 00:00:28]}
{[%emt 00:00:03]} 50. Rd2 {[%clk 00:00:23]} {[%emt 00:00:04]} Kxf5 {[%clk
00:00:30]} {[%emt 00:00:03]} 51. b4 {[%clk 00:00:22]} {[%emt 00:00:06]} Ke5
{[%clk 00:00:31]} {[%emt 00:00:05]} 52. Re2 {[%clk 00:00:14]} {[%emt 00:00:12]}
Rxe2 {[%clk 00:00:27]} {[%emt 00:00:09]} 53. Kxe2 {[%clk 00:00:18]} {[%emt
00:00:01]} Kd5 {[%clk 00:00:31]} 54. Kd3 {[%clk 00:00:20]} {[%emt 00:00:02]}
Kc6 {[%clk 00:00:31]} {[%emt 00:00:06]} 55. Kxd4 {[%clk 00:00:22]} {[%emt
00:00:03]} Kb5 {[%clk 00:00:36]} 56. Kc3 {[%clk 00:00:24]} {[%emt 00:00:02]}
Ka4 {[%clk 00:00:39]} {[%emt 00:00:02]} 57. Kb2 {[%clk 00:00:18]} {[%emt
00:00:11]} Kb5 {[%clk 00:00:42]} {[%emt 00:00:02]} 58. Kb3 {[%clk 00:00:22]}
{[%emt 00:00:01]} Kb6 {[%clk 00:00:46]} {[%emt 00:00:01]} 59. a4 {[%clk
00:00:25]} {[%emt 00:00:01]} Ka6 {[%clk 00:00:51]} 60. Kc4 {[%clk 00:00:29]}
{[%emt 00:00:01]} Kb6 {[%clk 00:00:55]} 61. a5+ {[%clk 00:00:32]} {[%emt
00:00:02]} Kc6 {[%clk 00:00:58]} {[%emt 00:00:01]} 62. b5+ {[%clk 00:00:36]}
{[%emt 00:00:02]} Kb7 {[%clk 00:01:02]} {[%emt 00:00:01]} 63. Kc5 {[%clk
00:00:39]} {[%emt 00:00:02]} Kc7 {[%clk 00:01:06]} {[%emt 00:00:01]} 64. a6
{[%clk 00:00:33]} {[%emt 00:00:10]} Kc8 {[%clk 00:01:09]} {[%emt 00:00:02]} 65.
b6 {[%clk 00:00:36]} {[%emt 00:00:02]} Kb8 {[%clk 00:01:13]} {[%emt 00:00:01]}
66. Kc6 {[%clk 00:00:24]} {[%emt 00:00:17]} Ka8 {[%clk 00:01:18]} {[%emt
00:00:01]} 67. b7+ {[%clk 00:00:18]} {[%emt 00:00:11]} Kb8 {[%clk 00:01:22]}
{[%emt 00:00:01]} 68. a7+ {[%clk 00:00:19]} {[%emt 00:00:05]} Kxa7 {[%clk
00:01:25]} {[%emt 00:00:01]} 69. Kc7 {[%clk 00:00:22]} 1-0

[Event "Open NK Rapid 2025 bord 26-50"]
[Site "Helmond, Netherlands"]
[Date "2025.05.03"]
[Round "2.23"]
[White "Fransen, Jean-Paul"]
[Black "Fu, Ziqing"]
[Result "1-0"]
[TimeControl "15 min +5 sec increment"]
[WhiteFideId "40101487"]
[BlackFideId "40109623"]
[WhiteElo "1964"]
[BlackElo "1721"]

1. e4 {[%clk 00:15:09]} {[%emt 00:00:01]} e5 {[%clk 00:15:09]} {[%emt
00:00:01]} 2. Nf3 {[%clk 00:15:12]} {[%emt 00:00:02]} Nc6 {[%clk 00:15:12]}
{[%emt 00:00:02]} 3. Bb5 {[%clk 00:15:15]} {[%emt 00:00:02]} a6 {[%clk
00:15:15]} {[%emt 00:00:02]} 4. Ba4 {[%clk 00:15:18]} {[%emt 00:00:01]} b5
{[%clk 00:15:16]} {[%emt 00:00:03]} 5. Bb3 {[%clk 00:15:21]} {[%emt 00:00:02]}
Nf6 {[%clk 00:15:18]} {[%emt 00:00:03]} 6. d3 {[%clk 00:15:25]} {[%emt
00:00:02]} d5 {[%clk 00:15:15]} {[%emt 00:00:08]} 7. exd5 {[%clk 00:15:18]}
{[%emt 00:00:11]} Nxd5 {[%clk 00:15:18]} {[%emt 00:00:03]} 8. O-O {[%clk
00:15:18]} {[%emt 00:00:05]} Be7 {[%clk 00:15:10]} {[%emt 00:00:13]} 9. h3
{[%clk 00:15:15]} {[%emt 00:00:07]} O-O {[%clk 00:15:10]} {[%emt 00:00:06]} 10.
Re1 {[%clk 00:15:11]} {[%emt 00:00:08]} Bf6 {[%clk 00:15:05]} {[%emt 00:00:11]}
11. a4 {[%clk 00:15:12]} {[%emt 00:00:04]} b4 {[%clk 00:14:44]} {[%emt
00:00:25]} 12. Nbd2 {[%clk 00:15:15]} {[%emt 00:00:02]} Be6 {[%clk 00:14:36]}
{[%emt 00:00:14]} 13. Nc4 {[%clk 00:15:08]} {[%emt 00:00:12]} Re8 {[%clk
00:13:49]} {[%emt 00:00:52]} 14. Ncxe5 {[%clk 00:12:49]} {[%emt 00:02:23]} Nxe5
{[%clk 00:13:46]} {[%emt 00:00:08]} 15. Nxe5 {[%clk 00:12:53]} {[%emt
00:00:02]} c5 {[%clk 00:12:59]} {[%emt 00:00:52]} 16. Qf3 {[%clk 00:10:18]}
{[%emt 00:02:40]} Rc8 {[%clk 00:12:33]} {[%emt 00:00:31]} 17. Bc4 {[%clk
00:08:25]} {[%emt 00:01:58]} a5 {[%clk 00:12:24]} {[%emt 00:00:14]} 18. Bd2
{[%clk 00:08:13]} {[%emt 00:00:17]} Bxe5 {[%clk 00:11:37]} {[%emt 00:00:52]} 19.
Rxe5 {[%clk 00:08:13]} {[%emt 00:00:05]} Nf6 {[%clk 00:11:32]} {[%emt
00:00:10]} 20. Bxe6 {[%clk 00:07:57]} {[%emt 00:00:21]} Rxe6 {[%clk 00:11:09]}
{[%emt 00:00:28]} 21. Rxe6 {[%clk 00:08:00]} {[%emt 00:00:03]} fxe6 {[%clk
00:11:11]} {[%emt 00:00:02]} 22. Bg5 {[%clk 00:07:56]} {[%emt 00:00:07]} h6
{[%clk 00:10:54]} {[%emt 00:00:23]} 23. Bh4 {[%clk 00:07:57]} {[%emt 00:00:03]}
Qd4 {[%clk 00:10:50]} {[%emt 00:00:10]} 24. Bxf6 {[%clk 00:07:35]} {[%emt
00:00:28]} Qxf6 {[%clk 00:10:47]} {[%emt 00:00:07]} 25. Qxf6 {[%clk 00:06:19]}
{[%emt 00:01:21]} gxf6 {[%clk 00:10:50]} {[%emt 00:00:03]} 26. Re1 {[%clk
00:06:19]} {[%emt 00:00:04]} Kf7 {[%clk 00:10:53]} {[%emt 00:00:02]} 27. Re4
{[%clk 00:06:21]} {[%emt 00:00:04]} e5 {[%clk 00:10:45]} {[%emt 00:00:13]} 28.
Kf1 {[%clk 00:06:18]} {[%emt 00:00:07]} Kg6 {[%clk 00:10:41]} {[%emt 00:00:09]}
29. Ke2 {[%clk 00:06:19]} {[%emt 00:00:04]} h5 {[%clk 00:10:28]} {[%emt
00:00:18]} 30. Ke3 {[%clk 00:05:55]} {[%emt 00:00:29]} Rc6 {[%clk 00:10:22]}
{[%emt 00:00:12]} 31. Rc4 {[%clk 00:05:37]} {[%emt 00:00:22]} f5 {[%clk
00:09:54]} {[%emt 00:00:34]} 32. c3 {[%clk 00:05:30]} {[%emt 00:00:12]} b3
{[%clk 00:09:38]} {[%emt 00:00:21]} 33. f4 {[%clk 00:05:16]} {[%emt 00:00:19]}
exf4+ {[%clk 00:09:26]} {[%emt 00:00:17]} 34. Kxf4 {[%clk 00:05:19]} {[%emt
00:00:01]} Kf6 {[%clk 00:09:29]} {[%emt 00:00:03]} 35. d4 {[%clk 00:05:19]}
{[%emt 00:00:05]} Ra6 {[%clk 00:08:36]} {[%emt 00:00:59]} 36. Rxc5 {[%clk
00:05:13]} {[%emt 00:00:11]} Kg6 {[%clk 00:08:17]} {[%emt 00:00:23]} 37. Rxf5
{[%clk 00:05:05]} {[%emt 00:00:13]} Ra7 {[%clk 00:08:00]} {[%emt 00:00:22]} 38.
Rb5 {[%clk 00:04:54]} {[%emt 00:00:16]} Rf7+ {[%clk 00:08:02]} {[%emt
00:00:02]} 39. Kg3 {[%clk 00:04:48]} {[%emt 00:00:11]} Ra7 {[%clk 00:07:55]}
{[%emt 00:00:13]} 40. Rxb3 {[%clk 00:04:49]} {[%emt 00:00:04]} Ra6 {[%clk
00:07:57]} {[%emt 00:00:04]} 41. c4 {[%clk 00:04:37]} {[%emt 00:00:16]} Rd6
{[%clk 00:07:58]} {[%emt 00:00:04]} 42. d5 {[%clk 00:04:38]} {[%emt 00:00:03]}
Rd7 {[%clk 00:07:58]} {[%emt 00:00:06]} 43. Kf4 {[%clk 00:04:39]} {[%emt
00:00:03]} Rc7 {[%clk 00:08:01]} {[%emt 00:00:03]} 44. Rc3 {[%clk 00:04:41]}
{[%emt 00:00:04]} Kf6 {[%clk 00:08:02]} {[%emt 00:00:03]} 45. c5 {[%clk
00:04:34]} {[%emt 00:00:11]} Rb7 {[%clk 00:07:50]} {[%emt 00:00:17]} 46. c6
{[%clk 00:04:25]} {[%emt 00:00:15]} Rb4+ {[%clk 00:07:52]} {[%emt 00:00:04]} 47.
Ke3 {[%clk 00:04:25]} {[%emt 00:00:04]} Rxa4 {[%clk 00:07:54]} {[%emt
00:00:03]} 48. c7 {[%clk 00:04:26]} {[%emt 00:00:03]} Rb4 {[%clk 00:07:56]}
{[%emt 00:00:05]} 49. c8=Q {[%clk 00:04:28]} {[%emt 00:00:02]} Rxb2 {[%clk
00:07:55]} {[%emt 00:00:06]} 50. Rc6+ {[%clk 00:04:21]} {[%emt 00:00:11]} Kg7
{[%clk 00:07:53]} {[%emt 00:00:08]} 51. Qd7+ {[%clk 00:04:20]} {[%emt
00:00:06]} Kf8 {[%clk 00:07:56]} {[%emt 00:00:02]} 52. Rc8# {[%clk 00:04:18]}
{[%emt 00:00:02]} 1-0